bitfinex/quotes_ETHUSD_20250725
["timestamp","ask_amount","ask_price","bid_price","bid_amount"]
[1753453107854,5.49152427,3676.9,3676.8,1e-08]
[1753453108030,9.89652427,3676.9,3676.8,1e-08]
[1753453108234,10.14442715,3676.9,3676.8,1e-08]
[1753453108479,5.49152427,3676.9,3676.8,1e-08]
[1753453108760,7.25868234,3676.9,3676.8,1e-08]
[1753453108960,7.12268234,3676.9,3676.8,1e-08]
[1753453109171,2.71968234,3676.9,3676.8,1e-08]
[1753453109462,0.002,3677.9,3676.9,0.3757]
[1753453109661,2.71928523,3677.5,3676.9,0.3757]
[1753453109868,0.03398863,3677.7,3676.9,0.3757]
[1753453110069,2.71960837,3677.0,3676.9,0.3757]
[1753453110241,2.71960837,3677.0,3676.8,1e-08]
[1753453110242,2.71968234,3676.9,3676.8,0.13600001]
[1753453110439,2.71968234,3676.9,3676.8,1e-08]
[1753453110440,4.28997836,3676.9,3676.8,1e-08]
[1753453110857,12.65744682,3676.9,3676.8,1e-08]
[1753453111025,15.6234508,3676.9,3676.8,1e-08]
[1753453111226,6.62614826,3676.9,3676.8,1e-08]
[1753453111662,2.85568234,3676.9,3676.8,1e-08]
[1753453111969,7.12868234,3676.9,3676.8,1e-08]
[1753453112286,4.409,3676.9,3676.8,1e-08]
[1753453112440,0.45759886,3677.7,3676.8,1e-08]
[1753453112441,4.409,3677.1,3676.8,1e-08]
[1753453112632,2.71968234,3676.9,3676.8,0.13600001]
[1753453112829,2.71968234,3676.9,3676.8,1e-08]
[1753453113070,2.71968234,3676.9,3676.8,0.13600001]
[1753453113240,2.75367836,3676.9,3676.8,1e-08]
[1753453113441,5.41416515,3676.9,3676.8,1e-08]
[1753453114068,4.44916913,3676.9,3676.8,1e-08]
[1753453114282,9.79016913,3676.9,3676.8,1e-08]
[1753453114668,2.71968234,3676.9,3676.8,1e-08]
[1753453114869,7.12868234,3676.9,3676.8,1e-08]
[1753453115192,7.12868234,3676.9,3676.8,0.13600001]
[1753453115489,7.12868234,3676.9,3676.8,1e-08]
[1753453117366,2.71968234,3676.9,3676.8,1e-08]
[1753453117566,1.3496,3678.3,3676.8,1.26350001]
[1753453117801,1.3496,3678.3,3676.9,0.9342]
[1753453117802,4.406,3677.8,3676.9,0.9342]
[1753453118004,7.1250681,3677.8,3677.1,0.3757]
[1753453118171,2.71858604,3678.4,3677.7,0.136]
[1753453118172,0.136,3678.4,3677.7,0.136]
[1753453118378,2.7190168,3677.8,3677.7,0.136]
[1753453118897,2.71916668,3677.6,3677.2,0.9342]
[1753453119098,7.12393213,3678.0,3677.6,0.136]
[1753453119262,7.12393213,3678.0,3677.1,0.3757]
[1753453119263,2.71924813,3677.5,3677.1,0.3757]
[1753453119464,2.7192265,3677.6,3677.2,0.9342]
[1753453119688,2.7192265,3677.6,3677.4,0.136]
[1753453119992,2.71916467,3677.6,3677.5,0.9342]
[1753453120197,0.002,3677.9,3677.5,1.3099]
[1753453120497,2.72094436,3677.9,3677.6,1.2635]
[1753453120696,2.72095695,3677.9,3677.8,0.136]
[1753453120999,0.002,3677.9,3677.8,1.0702]
[1753453121182,0.002,3677.9,3677.8,1.3995]
[1753453121386,0.002,3677.9,3677.8,2.3252]
[1753453122504,0.002,3677.9,3677.8,5.0442168]
[1753453122873,0.002,3677.9,3677.8,8.0442168]
[1753453123462,0.002,3678.7,3678.6,6.26842548]
[1753453123963,0.002,3678.7,3678.6,4.9495]
[1753453124164,0.002,3678.7,3678.6,7.66792548]
[1753453124596,0.002,3679.2,3678.6,7.66792548]
[1753453124597,0.002,3679.2,3679.1,3.26805604]
[1753453124842,0.3967323,3680.9,3679.9,0.55]
[1753453124980,8.36746846,3681.7,3679.8,0.3737]
[1753453124981,0.3967323,3681.3,3680.6,0.55]
[1753453125176,2.71635155,3681.5,3680.8,0.136]
[1753453125374,0.3967323,3681.7,3680.8,0.55]
[1753453125564,0.3967323,3681.7,3681.6,0.136]
[1753453125565,2.71613656,3681.7,3681.6,0.136]
[1753453125764,2.71628412,3681.5,3681.4,0.136]
[1753453125965,3.11301642,3681.5,3681.4,0.136]
[1753453126193,1.7463323,3681.5,3680.5,1.3079]
[1753453126403,0.03395447,3681.4,3681.1,0.136]
[1753453126588,2.71694832,3680.6,3680.5,0.3737]
[1753453127107,2.71694832,3680.6,3680.5,0.5097]
[1753453127259,2.71688569,3680.7,3680.5,0.5097]
[1753453127459,2.71680906,3680.8,3680.5,0.5097]
[1753453127691,2.71680906,3680.8,3680.7,0.136]
[1753453127904,0.39783337,3680.9,3680.7,0.136]
[1753453128206,0.39783337,3680.9,3680.8,0.9342]
[1753453128207,0.002,3680.9,3680.8,0.9342]
[1753453128365,0.002,3680.9,3680.8,1.8095]
[1753453128599,0.002,3680.9,3680.7,0.136]
[1753453128764,0.002,3680.9,3680.8,1.8095]
[1753453128994,0.002,3680.9,3680.8,4.52630069]
[1753453129165,0.002,3681.8,3680.8,7.52630069]
[1753453129366,0.002,3681.8,3681.1,3.0]
[1753453129572,0.002,3681.8,3681.7,0.686]
[1753453129900,0.002,3681.8,3681.7,6.40213656]
[1753453130203,0.002,3681.8,3681.7,7.86999253]
[1753453130503,0.002,3681.8,3681.7,8.24169253]
[1753453130669,0.002,3681.8,3681.7,12.64369253]
[1753453130868,0.002,3681.8,3681.7,8.24169253]
[1753453131096,0.002,3681.8,3681.7,12.64369253]
[1753453131305,0.002,3681.8,3681.7,9.3939]
[1753453131606,4.06766279,3681.8,3681.7,0.136]
[1753453131800,0.002,3681.8,3681.7,1.6202]
[1753453132397,0.002,3681.8,3681.7,1.9919]
[1753453132600,0.002,3681.8,3681.7,5.03333656]
[1753453132910,0.002,3681.8,3681.7,8.03333656]
[1753453133208,0.002,3681.8,3681.7,8.23757151]
[1753453133411,0.002,3681.8,3681.7,9.7212]
[1753453133612,0.002,3681.8,3681.7,12.11503656]
[1753453133913,0.002,3681.8,3681.7,0.5077]
[1753453134209,2.71806279,3681.8,3681.7,0.5077]
[1753453134411,2.71806279,3681.8,3681.7,0.136]
[1753453134711,4.74601538,3681.8,3681.7,0.136]
[1753453135152,2.71674472,3680.9,3680.6,0.3717]
[1753453135452,2.71674472,3680.9,3680.8,0.136]
[1753453136050,4.06634472,3680.9,3680.8,0.136]
[1753453136253,4.74463734,3680.9,3680.8,0.136]
[1753453136431,4.74463734,3680.9,3680.0,0.3717]
[1753453136432,2.71731746,3680.1,3680.0,0.3717]
[1753453136930,2.71731746,3680.1,3680.0,0.5077]
[1753453137126,2.71731746,3680.1,3680.0,0.136]
[1753453137964,0.4359,3680.9,3680.0,0.136]
[1753453138118,2.71714978,3680.4,3679.9,6.26164101]
[1753453138314,2.71694832,3680.6,3679.9,6.26164101]
[1753453138621,2.71709596,3680.4,3680.3,0.136]
[1753453138852,2.7173913,3680.0,3679.9,6.26164101]
[1753453139039,4.0669913,3680.0,3679.9,6.26164101]
[1753453139246,1.3496,3680.0,3679.9,0.136]
[1753453139524,4.0669913,3680.0,3679.9,0.136]
[1753453140520,0.9137,3681.0,3680.0,0.3734]
[1753453140757,2.71697777,3680.6,3680.0,0.3734]
[1753453140954,1.3496,3681.0,3680.0,0.3734]
[1753453140955,1.3496,3681.0,3680.9,0.136]
[1753453141165,1.3496,3681.0,3680.1,0.55]
[1753453141358,2.71641188,3681.4,3680.9,0.136]
[1753453141560,4.403,3681.8,3680.3,0.55]
[1753453141738,2.7163579,3681.4,3681.3,0.136]
[1753453141936,4.403,3681.8,3680.5,0.55]
[1753453142141,4.403,3681.8,3680.3,4.403]
[1753453142142,4.06573656,3681.7,3680.3,4.403]
[1753453142329,1.3496,3681.7,3681.5,0.136]
[1753453142527,4.06581034,3681.6,3681.5,0.136]
[1753453142868,4.74420345,3681.6,3681.5,0.136]
[1753453143164,4.74420345,3681.6,3680.4,0.3734]
[1753453143165,2.71672337,3681.0,3680.4,0.3734]
[1753453143330,2.71629286,3681.5,3681.4,0.136]
[1753453143524,2.71658518,3681.1,3680.9,0.136]
[1753453143731,0.4359,3681.5,3680.4,0.3734]
[1753453143929,0.9305,3681.0,3679.8,0.3734]
[1753453144170,4.06632688,3680.9,3680.8,0.136]
[1753453144863,0.9596,3681.5,3680.8,0.136]
[1753453145062,2.71651923,3681.2,3680.4,0.55]
[1753453145559,2.71651923,3681.2,3681.1,0.136]
[1753453145560,2.71650548,3681.2,3681.1,0.136]
[1753453145766,4.06610548,3681.2,3681.1,0.136]
[1753453146142,4.74435446,3681.2,3681.1,0.136]
[1753453146563,4.06612703,3681.2,3681.1,0.136]
[1753453146928,2.7168168,3680.8,3680.1,2.71730844]
[1753453147260,2.7168168,3680.8,3680.2,3.0]
[1753453147475,1.3496,3681.2,3680.7,0.136]
[1753453147680,1.3147,3681.7,3680.7,0.136]
[1753453147978,0.90005262,3681.6,3680.3,0.9176]
[1753453148141,0.4486,3681.5,3681.1,0.136]
[1753453148341,2.71687679,3680.7,3680.0,5.71739053]
[1753453148544,4.93693605,3680.9,3679.9,4.4]
[1753453148744,2.7168745,3680.7,3680.6,0.136]
[1753453148969,2.71694639,3680.7,3679.9,7.11742798]
[1753453149165,2.7168745,3680.7,3680.6,0.136]
[1753453149376,4.0315745,3680.7,3680.6,0.136]
[1753453149878,2.7168745,3680.7,3680.6,0.136]
[1753453150297,2.71665308,3681.0,3680.6,0.136]
[1753453150498,0.002,3680.9,3680.6,0.136]
[1753453150812,0.002,3680.9,3680.5,2.71696085]
[1753453151009,0.002,3680.9,3680.8,0.136]
[1753453151313,3.65313403,3680.9,3680.8,0.136]
[1753453151606,2.71873403,3680.9,3680.8,0.136]
[1753453151812,0.002,3680.9,3680.8,0.136]
[1753453151990,2.71872688,3680.9,3680.8,0.136]
[1753453152708,4.3199431,3680.9,3680.8,0.136]
[1753453153005,2.71729891,3680.2,3679.4,3.0]
[1753453153205,2.71729891,3680.2,3680.1,0.136]
[1753453153505,2.2579,3680.9,3680.1,0.136]
[1753453153714,2.71702743,3680.5,3680.2,0.3734]
[1753453153888,0.002,3680.9,3679.7,0.55]
[1753453153889,2.71730694,3680.2,3679.7,0.55]
[1753453154092,0.8661,3680.8,3680.4,0.136]
[1753453154292,0.4506,3680.9,3680.1,0.136]
[1753453154293,2.71697257,3680.6,3680.1,0.136]
[1753453154603,3.16732688,3680.9,3680.8,0.136]
[1753453154810,2.71448923,3684.0,3680.0,0.3734]
[1753453155025,1.26244984,3684.1,3682.3,6.26569399]
[1753453155230,1.11381835,3684.1,3682.3,12.98971939]
[1753453155405,0.8661,3684.1,3682.3,14.39072018]
[1753453155595,0.8661,3684.1,3682.4,4.91993412]
[1753453155792,0.994,3684.5,3682.6,3.55]
[1753453155793,1.8601,3684.5,3682.6,3.55]
[1753453156016,0.18601,3684.4,3683.3,0.3734]
[1753453156296,0.38955402,3684.8,3683.5,3.55]
[1753453156297,0.14165604,3684.8,3683.5,3.55]
[1753453156505,0.14165604,3684.8,3683.9,3.6379145]
[1753453156707,0.14165604,3684.8,3684.7,2.71392514]
[1753453156905,0.14165604,3684.8,3684.7,4.82221359]
[1753453157105,0.14165604,3684.8,3684.7,3.63732514]
[1753453157327,0.24789798,3685.7,3684.7,1.7593]
[1753453157532,0.9628,3686.1,3684.8,0.55]
[1753453157733,0.8661,3686.3,3684.8,0.55]
[1753453157734,0.18289,3686.0,3685.0,0.55]
[1753453157934,0.8661,3686.3,3685.5,2.71327538]
[1753453158234,3.61276922,3686.3,3685.0,3.0]
[1753453158434,2.71297253,3686.0,3685.0,3.0]
[1753453158633,0.24789798,3686.2,3685.0,3.0]
[1753453158634,2.71291255,3686.1,3685.0,3.0]
[1753453158837,3.41173627,3686.1,3685.1,0.55]
[1753453159019,0.69882372,3686.1,3685.2,2.71354391]
[1753453159222,0.69882372,3686.1,3685.1,0.74955265]
[1753453159540,0.8661,3686.3,3685.1,0.74955265]
[1753453159541,2.71324588,3685.7,3685.1,0.74955265]
[1753453159695,2.7131111,3685.9,3685.1,0.74955265]
[1753453159902,2.71312216,3685.8,3685.1,0.74955265]
[1753453160108,2.71318881,3685.7,3685.1,0.74955265]
[1753453160307,2.71328545,3685.6,3685.1,0.74955265]
[1753453160503,0.8661,3686.3,3685.1,0.19955265]
[1753453160504,2.71355693,3685.2,3685.1,0.19955265]
[1753453160746,2.7133462,3685.5,3685.0,4.471]
[1753453160942,3.57916624,3685.9,3685.1,0.55]
[1753453161235,0.8661,3685.9,3685.1,0.19926763]
[1753453161442,3.57915957,3685.9,3685.0,4.471]
[1753453161640,2.71328503,3685.6,3685.0,4.471]
[1753453162043,0.8661,3686.3,3685.0,4.471]
[1753453162205,2.71300798,3686.0,3685.2,2.71350209]
[1753453162405,0.22853,3686.2,3685.1,0.55]
[1753453162613,2.71313102,3685.8,3685.1,0.55]
[1753453162947,2.71316947,3685.8,3685.1,0.55]
[1753453163250,0.22853,3686.2,3685.1,0.55]
[1753453163453,2.71320211,3685.7,3685.1,0.55]
[1753453163656,0.22853,3686.2,3685.1,0.55]
[1753453163838,2.71325793,3685.7,3685.1,4.463]
[1753453164040,0.8661,3686.0,3685.1,4.463]
[1753453164209,0.8661,3686.0,3684.9,0.55]
[1753453164550,3.16166621,3685.9,3684.7,0.3734]
[1753453164856,2.71400105,3684.6,3684.3,0.3734]
[1753453165025,2.71392809,3684.7,3684.3,0.3734]
[1753453165225,2.7139988,3684.6,3684.5,0.136]
[1753453165438,2.71370104,3685.1,3684.5,0.136]
[1753453165644,2.71370104,3685.1,3684.6,0.55]
[1753453165821,2.71370914,3685.0,3684.6,0.55]
[1753453166016,0.8661,3685.4,3684.9,0.136]
[1753453166017,2.71364974,3685.1,3684.9,0.136]
[1753453166341,0.8661,3685.4,3684.9,0.136]
[1753453166520,0.9442,3685.6,3684.9,0.136]
[1753453166717,0.8661,3685.3,3684.5,0.55]
[1753453166937,2.71378162,3684.9,3684.5,0.75839214]
[1753453167121,2.71383525,3684.9,3684.8,0.136]
[1753453167550,1.3147,3684.9,3683.8,0.3734]
[1753453167729,0.36573591,3685.5,3682.7,0.4683]
[1753453167730,2.31722314,3684.8,3683.0,0.3734]
[1753453167917,2.71414612,3684.4,3684.3,0.136]
[1753453168335,2.71413126,3684.5,3684.3,0.136]
[1753453168535,1.8617,3685.0,3684.3,0.136]
[1753453168931,2.71367584,3685.1,3684.9,0.136]
[1753453169134,0.8661,3685.4,3685.0,0.55]
[1753453169331,3.136,3686.0,3685.0,0.55]
[1753453169332,2.71312849,3685.8,3685.0,1.841]
[1753453169555,3.57921519,3685.8,3685.7,0.136]
[1753453170068,4.02781519,3685.8,3685.7,0.136]
[1753453170258,3.57921519,3685.8,3685.7,0.136]
[1753453170657,2.71311519,3685.8,3685.7,0.136]
[1753453170860,2.71299435,3686.0,3685.7,0.136]
[1753453171070,5.3301,3686.6,3685.3,3.0]
[1753453171245,0.24720371,3686.5,3685.9,0.136]
[1753453171447,2.71290121,3686.1,3685.5,3.55]
[1753453171773,0.8661,3686.6,3686.0,0.136]
[1753453171974,2.71260002,3686.5,3686.0,0.136]
[1753453172177,2.71265862,3686.5,3685.8,0.55]
[1753453172337,2.71247358,3686.7,3686.0,0.55]
[1753453172541,2.71237953,3686.8,3686.6,0.136]
[1753453172737,0.002,3686.6,3686.5,0.55]
[1753453172966,0.002,3686.6,3686.5,3.26260002]
[1753453173165,0.002,3686.6,3686.5,5.19770002]
[1753453173544,0.002,3686.6,3686.5,2.4851]
[1753453173875,0.002,3686.6,3686.5,12.65770002]
[1753453175036,0.39528689,3688.3,3687.6,0.55]
[1753453175238,0.8661,3688.4,3687.6,0.55]
[1753453175239,2.71136497,3688.2,3687.6,0.9632]
[1753453175572,3.10652917,3688.4,3688.2,0.1352]
[1753453175774,0.8661,3688.3,3687.6,0.4132]
[1753453176072,2.71140164,3688.2,3687.6,0.9632]
[1753453176454,2.95841118,3688.2,3688.1,0.1352]
[1753453176669,2.95835084,3688.2,3688.1,0.1352]
[1753453176979,4.70081744,3688.2,3688.1,0.1352]
[1753453177185,4.94771643,3688.2,3688.1,0.1352]
[1753453177381,4.94776169,3688.2,3688.1,0.1352]
[1753453177676,4.33594589,3688.2,3688.1,0.1352]
[1753453177884,2.7121586,3687.1,3686.8,0.2070871]
[1753453178082,3.69940347,3687.8,3686.8,0.2070871]
[1753453178083,2.71193795,3687.4,3686.8,3.0]
[1753453178293,2.71195139,3687.4,3687.3,0.136]
[1753453178793,5.05785139,3687.4,3687.3,0.136]
[1753453179080,5.8348159,3687.4,3687.3,0.136]
[1753453179576,2.71263832,3686.5,3685.9,4.456]
[1753453180089,2.71244587,3686.8,3686.4,0.136]
[1753453180402,2.71260002,3686.5,3686.4,0.136]
[1753453180586,2.71290236,3686.1,3685.9,0.20417754]
[1753453180893,2.71267676,3686.4,3685.9,3.0]
[1753453181098,1.3776,3686.7,3685.9,3.0]
[1753453181269,2.71267361,3686.4,3686.3,0.136]
[1753453181477,2.71267361,3686.4,3685.9,3.20102383]
[1753453181680,3.61807361,3686.4,3686.3,0.136]
[1753453182205,4.09027361,3686.4,3686.3,0.136]
[1753453183104,4.77055534,3686.4,3686.3,0.136]
[1753453184090,4.09027361,3686.4,3686.3,0.136]
[1753453184466,4.09027361,3686.4,3685.1,1.0029]
[1753453184467,1.3776,3686.4,3684.5,0.857]
[1753453184672,2.71366995,3685.1,3684.8,0.4132]
[1753453184867,2.71384043,3684.9,3684.5,0.20831184]
[1753453185086,2.71363056,3685.1,3685.0,0.136]
[1753453185285,3.21952729,3685.4,3684.4,2.71408249]
[1753453185286,0.4722,3685.4,3684.4,2.71408249]
[1753453185514,1.8814,3685.6,3684.3,5.7132]
[1753453185712,2.71340967,3685.4,3685.3,0.136]
[1753453185887,2.71356059,3685.2,3684.4,3.0]
[1753453186086,2.71356059,3685.2,3684.6,3.0]
[1753453186321,2.71363126,3685.1,3684.4,5.7141328]
[1753453186519,2.71355693,3685.2,3685.1,0.136]
[1753453186726,2.71355693,3685.2,3685.0,0.136]
[1753453187232,0.9054,3686.0,3685.1,0.55]
[1753453187388,2.71324503,3685.7,3685.1,0.55]
[1753453187590,2.71312489,3685.8,3685.1,0.55]
[1753453187796,2.71319629,3685.7,3685.1,0.55]
[1753453188129,2.71312363,3685.8,3685.7,0.136]
[1753453188429,2.71312363,3685.8,3685.1,3.55]
[1753453188430,2.7131149,3685.9,3685.6,0.136]
[1753453188742,2.71295956,3686.1,3686.0,0.136]
[1753453188942,2.71283278,3686.2,3685.3,3.55]
[1753453189144,0.9054,3686.5,3686.0,0.136]
[1753453189290,0.9054,3686.5,3686.1,0.136]
[1753453189495,3.6180046,3686.5,3686.4,0.136]
[1753453190392,2.71252869,3686.6,3686.4,0.136]
[1753453190818,3.61792869,3686.6,3686.4,0.136]
[1753453191216,2.71260002,3686.5,3686.4,0.136]
[1753453191619,3.39286594,3686.5,3686.4,0.136]
[1753453191837,2.71297346,3686.0,3685.1,5.71355877]
[1753453192154,2.05786592,3686.5,3685.3,3.55]
[1753453192300,1.41150842,3686.4,3685.2,0.4132]
[1753453192649,1.3776,3686.4,3685.3,0.55]
[1753453192817,2.71275214,3686.3,3685.3,0.55]
[1753453193002,2.71292548,3686.1,3685.4,2.71339678]
[1753453193202,2.71282926,3686.2,3685.5,2.7132848]
[1753453193406,2.71294184,3686.1,3685.5,0.55]
[1753453193603,4.53836786,3686.4,3685.5,0.55]
[1753453193604,2.71274719,3686.3,3685.5,3.55]
[1753453193941,2.71289797,3686.1,3685.4,6.26338953]
[1753453194149,0.93931209,3686.0,3685.2,0.4132]
[1753453194301,2.71346915,3685.4,3684.8,4.446]
[1753453194735,2.71349017,3685.3,3684.8,7.446]
[1753453194943,0.9054,3685.6,3684.9,0.55]
[1753453195150,2.71314243,3685.8,3685.1,0.55]
[1753453195357,2.71314243,3685.8,3685.0,0.55]
[1753453195653,0.9054,3686.2,3685.5,2.71333545]
[1753453195830,0.9054,3686.2,3685.3,2.71347705]
[1753453195831,0.9054,3686.2,3685.4,4.993]
[1753453196036,0.943,3686.4,3685.6,3.12645471]
[1753453196238,0.943,3686.4,3685.6,3.12645433]
[1753453196420,0.943,3686.4,3685.6,0.4132]
[1753453196922,0.9054,3686.6,3685.6,0.4132]
[1753453197122,2.71260002,3686.5,3685.6,3.12642099]
[1753453197418,2.71265792,3686.5,3685.6,0.4132]
[1753453197607,2.71272486,3686.4,3685.8,2.71310866]
[1753453197808,2.71272486,3686.4,3685.7,2.71317748]
[1753453198127,3.18429248,3687.2,3685.8,4.3099]
[1753453198308,2.71224951,3687.0,3686.3,2.71272237]
[1753453198504,0.9054,3687.3,3686.5,0.4132]
[1753453198505,3.61743924,3687.3,3686.5,0.4132]
[1753453198742,2.71228339,3687.0,3686.5,0.61827732]
[1753453199110,0.9054,3687.3,3686.6,2.71252644]
[1753453199111,3.61743892,3687.3,3686.6,2.71252644]
[1753453199305,3.61741995,3687.3,3686.5,0.61827732]
[1753453199608,2.71235883,3686.9,3686.5,0.61827732]
[1753453199945,2.71235315,3686.9,3686.5,0.61827732]
[1753453200108,2.7120349,3687.3,3686.6,3.26250136]
[1753453200508,0.9054,3687.5,3686.6,3.26246262]
[1753453200709,3.61726608,3687.5,3686.9,0.55]
[1753453200909,3.61726608,3687.5,3686.5,1.07117732]
[1753453200910,0.03389646,3687.7,3686.5,3.61827732]
[1753453201135,0.03389646,3687.7,3686.1,4.433]
[1753453201136,2.71258875,3686.6,3686.1,4.433]
[1753453201306,2.71258875,3686.6,3686.1,4.63875322]
[1753453201523,0.4722,3687.0,3686.1,4.63875322]
[1753453201524,2.71282079,3686.2,3686.1,0.20575322]
[1753453201722,5.09812654,3686.2,3686.1,0.136]
[1753453201923,12.03529793,3686.2,3684.3,0.4172]
[1753453202121,1.54751117,3686.1,3685.6,0.136]
[1753453202310,2.71363433,3685.1,3684.7,0.2076866]
[1753453202506,3.61911604,3685.0,3684.3,3.4172]
[1753453202844,3.61911604,3685.0,3684.4,4.437]
[1753453202845,2.71383529,3684.9,3684.4,4.437]
[1753453203045,3.61910677,3685.0,3684.4,4.437]
[1753453203046,2.71387066,3684.8,3684.5,3.0]
[1753453203246,2.71393436,3684.7,3684.5,3.0]
[1753453203449,0.9054,3685.3,3684.7,3.136]
[1753453203626,2.7136581,3685.1,3684.6,0.136]
[1753453203852,2.7136581,3685.1,3684.5,3.0]
[1753453204063,0.9054,3685.3,3685.0,0.136]
[1753453204352,2.71363056,3685.1,3685.0,0.136]
[1753453204653,3.61859442,3685.7,3685.2,0.136]
[1753453204855,3.61859442,3685.7,3684.9,2.71370981]
[1753453204856,1.3776,3685.6,3685.0,4.569]
[1753453205014,4.09090007,3685.6,3685.0,4.433]
[1753453205221,4.09090007,3685.6,3685.5,0.136]
[1753453205222,4.09086242,3685.6,3685.5,0.136]
[1753453205634,1.3776,3685.6,3685.5,0.136]
[1753453205949,0.9054,3685.6,3685.5,0.136]
[1753453206134,3.61866242,3685.6,3685.5,0.136]
[1753453206722,0.9054,3685.6,3685.5,0.136]
[1753453207344,3.61866242,3685.6,3685.5,0.136]
[1753453207651,0.9054,3685.6,3685.5,0.136]
[1753453208422,0.4722,3686.0,3685.5,0.136]
[1753453208621,1.3206,3685.9,3685.5,0.136]
[1753453208832,1.3206,3685.8,3684.6,0.19902043]
[1753453209055,0.03391486,3685.7,3684.3,3.4172]
[1753453209254,2.74710367,3685.7,3685.6,0.136]
[1753453209669,2.71318881,3685.7,3685.6,0.136]
[1753453209873,4.06770367,3685.7,3685.6,0.136]
[1753453210037,2.71373416,3685.0,3684.6,7.42]
[1753453210452,2.71373416,3685.0,3684.9,0.136]
[1753453210453,3.5909042,3685.0,3684.9,0.136]
[1753453211171,1.3206,3685.4,3684.9,0.136]
[1753453211372,2.71391692,3684.8,3684.6,3.0]
[1753453211550,1.3206,3685.3,3684.6,3.20537345]
[1753453211551,2.71379388,3684.9,3684.6,3.20537345]
[1753453211940,2.71363184,3685.1,3684.8,0.136]
[1753453212140,2.71377785,3684.9,3684.8,0.136]
[1753453212381,2.71386698,3684.8,3684.6,3.20537345]
[1753453212581,0.8772,3685.1,3684.6,3.20537345]
[1753453212746,0.8772,3685.1,3685.0,0.136]
[1753453213074,3.59089175,3685.1,3685.0,0.136]
[1753453213277,4.03429175,3685.1,3685.0,0.136]
[1753453213478,4.70907016,3685.1,3685.0,0.136]
[1753453214379,2.71369175,3685.1,3685.0,0.136]
[1753453214542,2.71349604,3685.3,3685.0,0.136]
[1753453214741,2.71363056,3685.1,3685.0,0.136]
[1753453214942,2.71393734,3684.7,3684.4,3.0]
[1753453215255,1.3206,3685.2,3684.4,0.19935522]
[1753453215256,2.71407246,3684.5,3684.4,0.19935522]
[1753453215453,2.71340808,3685.5,3684.4,0.19935522]
[1753453215677,0.8772,3685.2,3684.4,0.19935522]
[1753453215848,2.71377823,3684.9,3684.3,3.0]
[1753453216049,0.8772,3685.2,3685.0,0.136]
[1753453216380,2.71371383,3685.0,3684.8,0.136]
[1753453216545,2.71371383,3685.0,3684.3,2.71415296]
[1753453216746,3.1571017,3685.1,3684.9,0.136]
[1753453216965,4.0343042,3685.0,3684.9,0.136]
[1753453217344,1.3206,3685.0,3684.9,0.136]
[1753453217544,4.0343042,3685.0,3684.9,0.136]
[1753453217765,3.5909042,3685.0,3684.9,0.136]
[1753453218362,4.0343042,3685.0,3684.9,0.136]
[1753453218569,3.5909042,3685.0,3684.9,0.136]
[1753453219078,2.71365515,3685.1,3684.9,0.136]
[1753453219246,7.11958783,3685.2,3684.9,0.136]
[1753453219581,2.71315167,3685.8,3685.1,2.71362701]
[1753453219764,1.0024,3686.2,3684.9,2.84976]
[1753453219765,1.8796,3686.2,3685.7,0.136]
[1753453219963,1.8796,3686.2,3685.0,1.8529]
[1753453219964,1.35451117,3686.1,3685.1,3.0]
[1753453220145,2.71325568,3685.7,3685.1,3.0]
[1753453220345,1.3206,3686.1,3685.8,0.136]
[1753453220346,2.71304159,3685.9,3685.8,0.136]
[1753453220550,1.0024,3686.2,3685.6,0.136]
[1753453220859,4.406,3686.5,3685.8,0.136]
[1753453221059,2.71260327,3686.5,3685.8,2.71310652]
[1753453221244,1.0024,3686.6,3686.4,0.136]
[1753453221445,0.8772,3686.7,3686.4,0.136]
[1753453221662,4.03320002,3686.5,3686.4,0.136]
[1753453221858,4.03320002,3686.5,3685.0,3.0]
[1753453221859,2.71341861,3685.4,3685.0,3.0]
[1753453222058,1.3206,3685.3,3684.6,0.001]
[1753453222348,2.71356047,3685.2,3684.6,3.001]
[1753453222672,0.8772,3685.3,3684.6,0.001]
[1753453222872,0.91111854,3685.3,3684.6,0.001]
[1753453223077,2.71380516,3684.9,3684.6,0.001]
[1753453223275,0.67639185,3685.2,3684.6,0.001]
[1753453223276,2.71372825,3685.0,3684.6,0.001]
[1753453223471,2.71372825,3685.0,3684.8,0.136]
[1753453223676,0.8772,3684.9,3684.8,0.136]
[1753453224168,3.59097785,3684.9,3684.8,0.136]
[1753453224368,0.8772,3684.9,3684.8,0.136]
[1753453224582,0.4434,3685.2,3684.8,0.136]
[1753453224583,2.71362125,3685.2,3684.8,0.136]
[1753453224786,2.71363977,3685.1,3684.8,0.136]
[1753453225001,2.71363977,3685.1,3684.6,0.001]
[1753453225297,2.71363977,3685.1,3685.0,0.136]
[1753453226086,2.71357253,3685.2,3685.0,0.136]
[1753453226288,2.71363056,3685.1,3685.0,0.136]
[1753453226497,3.59083056,3685.1,3685.0,0.136]
[1753453226701,2.71392514,3684.7,3684.6,0.001]
[1753453227094,3.59112514,3684.7,3684.6,0.137]
[1753453227291,0.8772,3684.7,3684.6,0.137]
[1753453227480,2.71386558,3684.8,3684.6,0.137]
[1753453227683,2.71386558,3684.8,3684.6,0.001]
[1753453227886,2.71386558,3684.8,3684.7,0.136]
[1753453228066,3.59106558,3684.8,3684.7,0.136]
[1753453228592,2.71392514,3684.7,3684.6,0.001]
[1753453228792,5.0077492,3684.7,3684.6,1e-08]
[1753453228991,5.0077492,3684.7,3683.8,0.001]
[1753453228992,6.65351979,3684.3,3683.9,0.136]
[1753453229292,3.65388819,3683.8,3683.7,1e-08]